{"text_format":"1","workbook":"xlsx","n_sheets":2,"sheets":["入力用","納付書"],"not_rendered":{"charts":0,"images":0,"macros":1,"external_links":0,"defined_names":1,"comments":0,"pivot_tables":0},"unopened":[],"bounds":{"document_bytes":16777216,"sheet_cells":100000,"rows_first":2000,"rows_last":500,"rows_between":2000,"halvings":0,"cell_chars":16384,"cell_head_chars":4096},"cells_cut":0,"cells_raw":0,"read":"whole","date_system":"1900"}

{"sheet":"入力用","index":0,"n_rows":34,"n_cols":51,"rows_kept":34,"cut":false,"hidden":false,"merged":[[33,27,35,28],[18,1,20,10],[21,1,23,10],[24,1,26,10],[27,1,29,10],[30,1,32,10],[18,11,20,28],[21,11,23,28],[24,11,26,28],[27,11,29,28],[30,11,32,28],[33,1,35,10],[33,11,35,16],[33,17,35,20],[33,21,35,22],[33,23,35,26],[12,1,14,10],[12,11,14,52],[15,1,17,10],[15,11,17,16],[15,17,17,20],[15,21,17,22],[15,23,17,26],[15,27,17,28],[3,11,5,17],[9,1,11,10],[3,1,5,10],[9,11,11,52],[6,11,8,17],[6,1,8,10]]}
[]
[]
[]
[null,"年度区分",null,null,null,null,null,null,null,null,null,3]
[]
[]
[null,"登録番号"]
[]
[]
[null,"住所又は所在地"]
[]
[]
[null,"氏名又は名称"]
[]
[]
[null,"申告年月",null,null,null,null,null,null,null,null,null,"令和",null,null,null,null,null,3,null,null,null,"年",null,3,null,null,null,"月"]
[]
[]
[null,"納入税額",null,null,null,null,null,null,null,null,null,null,null,null,null,null,null,null,null,null,null,null,null,null,null,null,null,null,null,null,null,null,null,null,null,null,null,null,null,null,null,null,"万",null,"千",null,"百",null,"十",null,"一"]
[null,null,null,null,null,null,null,null,null,null,null,null,null,null,null,null,null,null,null,null,null,null,null,null,null,null,null,null,null,null,null,null,null,null,null,null,{"$f":"IF($L19<10000000,\"\",RIGHT(ROUNDDOWN($L19/10000000,0),1))","v":""},null,{"$f":"IF($L19<1000000,\"\",RIGHT(ROUNDDOWN($L19/1000000,0),1))","v":""},null,{"$f":"IF($L19<100000,\"\",RIGHT(ROUNDDOWN($L19/100000,0),1))","v":""},null,{"$f":"IF($L19<10000,\"\",RIGHT(ROUNDDOWN($L19/10000,0),1))","v":""},null,{"$f":"IF($L19<1000,\"\",RIGHT(ROUNDDOWN($L19/1000,0),1))","v":""},null,{"$f":"IF($L19<100,\"\",RIGHT(ROUNDDOWN($L19/100,0),1))","v":""},null,{"$f":"IF($L19<10,\"\",RIGHT(ROUNDDOWN($L19/10,0),1))","v":""},null,{"$f":"RIGHT(L19,1)","v":""}]
[]
[null,"延滞金額",null,null,null,null,null,null,null,null,null,0,null,null,null,null,null,null,null,null,null,null,null,null,null,null,null,null,null,null,null,null,null,null,null,null,null,null,null,null,null,null,"万",null,"千",null,"百",null,"十",null,"一"]
[null,null,null,null,null,null,null,null,null,null,null,null,null,null,null,null,null,null,null,null,null,null,null,null,null,null,null,null,null,null,null,null,null,null,null,null,{"$f":"IF($L22<10000000,\"\",RIGHT(ROUNDDOWN($L22/10000000,0),1))","v":""},null,{"$f":"IF($L22<1000000,\"\",RIGHT(ROUNDDOWN($L22/1000000,0),1))","v":""},null,{"$f":"IF($L22<100000,\"\",RIGHT(ROUNDDOWN($L22/100000,0),1))","v":""},null,{"$f":"IF($L22<10000,\"\",RIGHT(ROUNDDOWN($L22/10000,0),1))","v":""},null,{"$f":"IF($L22<1000,\"\",RIGHT(ROUNDDOWN($L22/1000,0),1))","v":""},null,{"$f":"IF($L22<100,\"\",RIGHT(ROUNDDOWN($L22/100,0),1))","v":""},null,{"$f":"IF($L22<10,\"\",RIGHT(ROUNDDOWN($L22/10,0),1))","v":""},null,{"$f":"RIGHT(L22,1)","v":"0"}]
[]
[null,"督促手数料",null,null,null,null,null,null,null,null,null,0,null,null,null,null,null,null,null,null,null,null,null,null,null,null,null,null,null,null,null,null,null,null,null,null,null,null,null,null,null,null,"万",null,"千",null,"百",null,"十",null,"一"]
[null,null,null,null,null,null,null,null,null,null,null,null,null,null,null,null,null,null,null,null,null,null,null,null,null,null,null,null,null,null,null,null,null,null,null,null,{"$f":"IF($L25<10000000,\"\",RIGHT(ROUNDDOWN($L25/10000000,0),1))","v":""},null,{"$f":"IF($L25<1000000,\"\",RIGHT(ROUNDDOWN($L25/1000000,0),1))","v":""},null,{"$f":"IF($L25<100000,\"\",RIGHT(ROUNDDOWN($L25/100000,0),1))","v":""},null,{"$f":"IF($L25<10000,\"\",RIGHT(ROUNDDOWN($L25/10000,0),1))","v":""},null,{"$f":"IF($L25<1000,\"\",RIGHT(ROUNDDOWN($L25/1000,0),1))","v":""},null,{"$f":"IF($L25<100,\"\",RIGHT(ROUNDDOWN($L25/100,0),1))","v":""},null,{"$f":"IF($L25<10,\"\",RIGHT(ROUNDDOWN($L25/10,0),1))","v":""},null,{"$f":"RIGHT(L25,1)","v":"0"}]
[]
[null,"過少・不申告\n加算金額",null,null,null,null,null,null,null,null,null,0,null,null,null,null,null,null,null,null,null,null,null,null,null,null,null,null,null,null,null,null,null,null,null,null,null,null,null,null,null,null,"万",null,"千",null,"百",null,"十",null,"一"]
[null,null,null,null,null,null,null,null,null,null,null,null,null,null,null,null,null,null,null,null,null,null,null,null,null,null,null,null,null,null,null,null,null,null,null,null,{"$f":"IF($L28<10000000,\"\",RIGHT(ROUNDDOWN($L28/10000000,0),1))","v":""},null,{"$f":"IF($L28<1000000,\"\",RIGHT(ROUNDDOWN($L28/1000000,0),1))","v":""},null,{"$f":"IF($L28<100000,\"\",RIGHT(ROUNDDOWN($L28/100000,0),1))","v":""},null,{"$f":"IF($L28<10000,\"\",RIGHT(ROUNDDOWN($L28/10000,0),1))","v":""},null,{"$f":"IF($L28<1000,\"\",RIGHT(ROUNDDOWN($L28/1000,0),1))","v":""},null,{"$f":"IF($L28<100,\"\",RIGHT(ROUNDDOWN($L28/100,0),1))","v":""},null,{"$f":"IF($L28<10,\"\",RIGHT(ROUNDDOWN($L28/10,0),1))","v":""},null,{"$f":"RIGHT(L28,1)","v":"0"}]
[]
[null,"合計額",null,null,null,null,null,null,null,null,null,{"$f":"SUM(L19:AC30)","v":0},null,null,null,null,null,null,null,null,null,null,null,null,null,null,null,null,null,null,null,null,null,null,null,null,null,null,null,null,null,null,"万",null,"千",null,"百",null,"十",null,"一"]
[null,null,null,null,null,null,null,null,null,null,null,null,null,null,null,null,null,null,null,null,null,null,null,null,null,null,null,null,null,null,null,null,null,null,null,null,{"$f":"IF($L31<10000000,\"\",RIGHT(ROUNDDOWN($L31/10000000,0),1))","v":""},null,{"$f":"IF($L31<1000000,\"\",RIGHT(ROUNDDOWN($L31/1000000,0),1))","v":""},null,{"$f":"IF($L31<100000,\"\",RIGHT(ROUNDDOWN($L31/100000,0),1))","v":""},null,{"$f":"IF($L31<10000,\"\",RIGHT(ROUNDDOWN($L31/10000,0),1))","v":""},null,{"$f":"IF($L31<1000,\"\",RIGHT(ROUNDDOWN($L31/1000,0),1))","v":""},null,{"$f":"IF($L31<100,\"\",RIGHT(ROUNDDOWN($L31/100,0),1))","v":""},null,{"$f":"IF($L31<10,\"\",RIGHT(ROUNDDOWN($L31/10,0),1))","v":""},null,{"$f":"RIGHT(L31,1)","v":"0"}]
[]
[null,"納期限",null,null,null,null,null,null,null,null,null,"令和",null,null,null,null,null,{"$f":"IF(R16=\"\",\"\",R16)","v":3},null,null,null,"年",null,{"$f":"IF(X16=12,1,X16+1)","v":4},null,null,null,"月"]

{"sheet":"納付書","index":1,"n_rows":57,"n_cols":102,"rows_kept":57,"cut":false,"hidden":false,"merged":[[43,91,46,92],[43,93,46,94],[47,76,48,76],[47,77,48,79],[47,81,48,94],[49,81,57,94],[49,72,51,80],[47,80,48,80],[40,89,42,90],[40,91,42,92],[40,93,42,94],[43,65,46,78],[43,79,46,80],[43,81,46,82],[43,83,46,84],[43,85,46,86],[43,87,46,88],[43,89,46,90],[40,65,42,78],[40,79,42,80],[40,81,42,82],[40,83,42,84],[40,85,42,86],[40,87,42,88],[37,65,39,78],[37,79,39,80],[37,81,39,82],[37,83,39,84],[37,85,39,86],[37,87,39,88],[37,89,39,90],[37,91,39,92],[37,93,39,94],[31,91,33,92],[31,93,33,94],[34,65,36,78],[34,79,36,80],[34,81,36,82],[34,83,36,84],[34,85,36,86],[34,87,36,88],[34,89,36,90],[34,91,36,92],[34,93,36,94],[31,81,33,82],[31,83,33,84],[31,85,33,86],[31,87,33,88],[31,89,33,90],[30,65,30,78],[30,79,30,80],[30,81,30,82],[30,83,30,84],[30,85,30,86],[30,87,30,88],[1,65,4,94],[5,65,6,74],[6,82,7,90],[7,65,8,74],[8,82,9,90],[9,65,10,74],[10,82,11,90],[13,65,14,77],[49,65,51,71],[13,78,14,94],[15,65,16,77],[15,78,16,94],[17,65,18,94],[27,65,29,74],[27,75,29,77],[27,78,29,80],[27,81,29,84],[27,85,29,94],[21,66,22,93],[30,89,30,90],[30,91,30,92],[30,93,30,94],[31,65,33,78],[31,79,33,80],[43,59,46,60],[43,61,46,62],[47,40,48,40],[47,41,48,43],[47,44,48,44],[47,49,48,62],[40,57,42,58],[40,59,42,60],[40,61,42,62],[43,33,46,46],[43,47,46,48],[43,49,46,50],[43,51,46,52],[43,53,46,54],[43,55,46,56],[43,57,46,58],[40,33,42,46],[40,47,42,48],[40,49,42,50],[40,51,42,52],[40,53,42,54],[40,55,42,56],[34,61,36,62],[37,33,39,46],[37,47,39,48],[37,49,39,50],[37,51,39,52],[37,53,39,54],[37,55,39,56],[37,57,39,58],[37,59,39,60],[37,61,39,62],[34,57,36,58],[34,59,36,60],[31,55,33,56],[31,57,33,58],[34,33,36,46],[34,47,36,48],[34,49,36,50],[34,51,36,52],[34,53,36,54],[34,55,36,56],[30,53,30,54],[30,55,30,56],[30,57,30,58],[30,59,30,60],[30,61,30,62],[31,33,33,46],[31,47,33,48],[31,49,33,50],[31,51,33,52],[31,53,33,54],[31,59,33,60],[31,61,33,62],[13,46,14,62],[15,33,16,45],[15,46,16,62],[17,33,18,62],[27,33,29,42],[27,43,29,45],[27,46,29,48],[27,49,29,52],[27,53,29,62],[21,34,22,61],[1,1,4,30],[52,1,53,16],[49,1,51,16],[1,33,4,62],[5,33,6,42],[6,50,7,58],[7,33,8,42],[21,2,22,29],[24,2,25,28],[24,34,25,60],[30,1,30,14],[31,1,33,14],[47,17,48,30],[49,17,57,30],[27,1,29,10],[27,11,29,13],[27,14,29,16],[27,17,29,20],[27,21,29,30],[40,27,42,28],[43,19,46,20],[43,21,46,22],[43,23,46,24],[43,25,46,26],[43,27,46,28],[43,29,46,30],[37,27,39,28],[37,29,39,30],[40,15,42,16],[40,17,42,18],[40,19,42,20],[40,21,42,22],[40,23,42,24],[40,25,42,26],[40,29,42,30],[43,15,46,16],[43,17,46,18],[34,27,36,28],[34,29,36,30],[37,15,39,16],[37,17,39,18],[37,19,39,20],[37,21,39,22],[37,23,39,24],[37,25,39,26],[34,15,36,16],[34,17,36,18],[34,19,36,20],[34,21,36,22],[17,1,18,30],[6,18,7,26],[24,66,25,92],[49,33,52,36],[49,37,50,46],[51,37,52,46],[49,47,50,48],[51,47,52,48],[30,33,30,46],[30,47,30,48],[30,49,30,50],[30,51,30,52],[47,45,48,47],[47,48,48,48],[11,1,12,10],[34,1,36,14],[40,1,42,14],[10,18,11,26],[30,21,30,22],[30,29,30,30],[31,15,33,16],[31,17,33,18],[31,19,33,20],[31,21,33,22],[53,33,57,48],[19,83,20,87],[19,88,20,94],[52,65,57,80],[47,73,48,75],[47,65,48,68],[47,69,48,71],[47,72,48,72],[47,9,48,11],[47,13,48,15],[49,49,57,62],[55,2,55,15],[31,23,33,24],[31,25,33,26],[31,27,33,28],[31,29,33,30],[30,15,30,16],[30,17,30,18],[30,19,30,20],[30,27,30,28],[30,23,30,24],[30,25,30,26],[34,23,36,24],[34,25,36,26],[4,101,34,101],[11,65,12,74],[15,1,16,13],[15,14,16,30],[37,1,39,14],[8,18,9,26],[8,50,9,58],[9,33,10,42],[47,12,48,12],[47,16,48,16],[11,33,12,42],[47,1,48,4],[47,8,48,8],[47,33,48,36],[47,37,48,39],[47,5,48,7],[43,1,46,14],[10,50,11,58],[13,33,14,45],[5,1,6,10],[7,1,8,10],[9,1,10,10],[13,1,14,13],[13,14,14,30]]}
[]
[null,"入湯税領収証書",null,null,null,null,null,null,null,null,null,null,null,null,null,null,null,null,null,null,null,null,null,null,null,null,null,null,null,null,null,null,null,"入湯税納付書",null,null,null,null,null,null,null,null,null,null,null,null,null,null,null,null,null,null,null,null,null,null,null,null,null,null,null,null,null,null,null,"入湯税領収済通知書"]
[]
[]
[null,null,null,null,null,null,null,null,null,null,null,null,null,null,null,null,null,null,null,null,null,null,null,null,null,null,null,null,null,null,null,null,null,null,null,null,null,null,null,null,null,null,null,null,null,null,null,null,null,null,null,null,null,null,null,null,null,null,null,null,null,null,null,null,null,null,null,null,null,null,null,null,null,null,null,null,null,null,null,null,null,null,null,null,null,null,null,null,null,null,null,null,null,null,null,null,null,null,null,null,null,"この線で切り取って使用してください。"]
[null,"市町村コード",null,null,null,null,null,null,null,null,null,null,null,null,null,null,null,null,null,null,null,null,null,null,null,null,null,null,null,null,null,null,null,"市町村コード",null,null,null,null,null,null,null,null,null,null,null,null,null,null,null,null,null,null,null,null,null,null,null,null,null,null,null,null,null,null,null,"市町村コード"]
[null,null,null,null,null,null,null,null,null,null,null,null,null,null,null,null,null,null,"年度区分",null,null,null,null,null,null,null,null,null,null,null,null,null,null,null,null,null,null,null,null,null,null,null,null,null,null,null,null,null,null,null,"年度区分",null,null,null,null,null,null,null,null,null,null,null,null,null,null,null,null,null,null,null,null,null,null,null,null,null,null,null,null,null,null,null,"年度区分"]
[null,"052159",null,null,null,null,null,null,null,null,null,null,null,null,null,null,null,null,null,null,null,null,null,null,null,null,null,null,null,null,null,null,null,"052159",null,null,null,null,null,null,null,null,null,null,null,null,null,null,null,null,null,null,null,null,null,null,null,null,null,null,null,null,null,null,null,"052159"]
[null,null,null,null,null,null,null,null,null,null,null,null,null,null,null,null,null,null,{"$f":"入力用!L4","v":3},null,null,null,null,null,null,null,null,null,null,null,null,null,null,null,null,null,null,null,null,null,null,null,null,null,null,null,null,null,null,null,{"$f":"S9","v":3},null,null,null,null,null,null,null,null,null,null,null,null,null,null,null,null,null,null,null,null,null,null,null,null,null,null,null,null,null,null,null,{"$f":"S9","v":3}]
[null,"秋田県",null,null,null,null,null,null,null,null,null,null,null,null,null,null,null,null,null,null,null,null,null,null,null,null,null,null,null,null,null,null,null,"秋田県",null,null,null,null,null,null,null,null,null,null,null,null,null,null,null,null,null,null,null,null,null,null,null,null,null,null,null,null,null,null,null,"秋田県"]
[null,null,null,null,null,null,null,null,null,null,null,null,null,null,null,null,null,null,"一般会計",null,null,null,null,null,null,null,null,null,null,null,null,null,null,null,null,null,null,null,null,null,null,null,null,null,null,null,null,null,null,null,"一般会計",null,null,null,null,null,null,null,null,null,null,null,null,null,null,null,null,null,null,null,null,null,null,null,null,null,null,null,null,null,null,null,"一般会計"]
[null,"仙北市",null,null,null,null,null,null,null,null,null,null,null,null,null,null,null,null,null,null,null,null,null,null,null,null,null,null,null,null,null,null,null,"仙北市",null,null,null,null,null,null,null,null,null,null,null,null,null,null,null,null,null,null,null,null,null,null,null,null,null,null,null,null,null,null,null,"仙北市"]
[]
[null,"口座番号",null,null,null,null,null,null,null,null,null,null,null,null,"口座名義",null,null,null,null,null,null,null,null,null,null,null,null,null,null,null,null,null,null,"口座番号",null,null,null,null,null,null,null,null,null,null,null,null,"口座名義",null,null,null,null,null,null,null,null,null,null,null,null,null,null,null,null,null,null,"口座番号",null,null,null,null,null,null,null,null,null,null,null,null,"口座名義"]
[]
[null,252561,null,null,null,null,null,null,null,null,null,null,null,null,"仙北市会計管理者",null,null,null,null,null,null,null,null,null,null,null,null,null,null,null,null,null,null,252561,null,null,null,null,null,null,null,null,null,null,null,null,"仙北市会計管理者",null,null,null,null,null,null,null,null,null,null,null,null,null,null,null,null,null,null,252561,null,null,null,null,null,null,null,null,null,null,null,null,"仙北市会計管理者"]
[]
[null,"特別徴収義務者住所・氏名",null,null,null,null,null,null,null,null,null,null,null,null,null,null,null,null,null,null,null,null,null,null,null,null,null,null,null,null,null,null,null,"特別徴収義務者住所・氏名",null,null,null,null,null,null,null,null,null,null,null,null,null,null,null,null,null,null,null,null,null,null,null,null,null,null,null,null,null,null,null,"特別徴収義務者住所・氏名"]
[]
[null,null,null,null,null,null,null,null,null,null,null,null,null,null,null,null,null,null,null,null,null,null,null,null,null,null,null,null,null,null,null,null,null,null,null,null,null,null,null,null,null,null,null,null,null,null,null,null,null,null,null,null,null,null,null,null,null,null,null,null,null,null,null,null,null,null,null,null,null,null,null,null,null,null,null,null,null,null,null,null,null,null,null,"登録番号",null,null,null,null,{"$f":"入力用!L7","v":0}]
[null,null,"住所又は所在地",null,null,null,null,null,null,null,null,null,null,null,null,null,null,null,null,null,null,null,null,null,null,null,null,null,null,null,null,null,null,null,"住所又は所在地",null,null,null,null,null,null,null,null,null,null,null,null,null,null,null,null,null,null,null,null,null,null,null,null,null,null,null,null,null,null,null,"住所又は所在地"]
[null,null,{"$f":"入力用!L10","v":0},null,null,null,null,null,null,null,null,null,null,null,null,null,null,null,null,null,null,null,null,null,null,null,null,null,null,null,null,null,null,null,{"$f":"C22","v":0},null,null,null,null,null,null,null,null,null,null,null,null,null,null,null,null,null,null,null,null,null,null,null,null,null,null,null,null,null,null,null,{"$f":"C22","v":0}]
[]
[null,null,"氏名又は名称",null,null,null,null,null,null,null,null,null,null,null,null,null,null,null,null,null,null,null,null,null,null,null,null,null,null,null,null,null,null,null,"氏名又は名称",null,null,null,null,null,null,null,null,null,null,null,null,null,null,null,null,null,null,null,null,null,null,null,null,null,null,null,null,null,null,null,"氏名又は名称"]
[null,null,{"$f":"入力用!L13","v":0},null,null,null,null,null,null,null,null,null,null,null,null,null,null,null,null,null,null,null,null,null,null,null,null,null,null,null,null,null,null,null,{"$f":"C25","v":0},null,null,null,null,null,null,null,null,null,null,null,null,null,null,null,null,null,null,null,null,null,null,null,null,null,null,null,null,null,null,null,{"$f":"C25","v":0}]
[null,null,null,null,null,null,null,null,null,null,null,null,null,null,null,null,null,null,null,null,null,null,null,null,null,null,null,null,null,"様",null,null,null,null,null,null,null,null,null,null,null,null,null,null,null,null,null,null,null,null,null,null,null,null,null,null,null,null,null,null,null,"様",null,null,null,null,null,null,null,null,null,null,null,null,null,null,null,null,null,null,null,null,null,null,null,null,null,null,null,null,null,null,null,"様"]
[]
[null,"令和",null,null,null,null,null,null,null,null,null,{"$f":"入力用!R16","v":3},null,null,"年",null,null,{"$f":"入力用!X16","v":3},null,null,null,"月分",null,null,null,null,null,null,null,null,null,null,null,"令和",null,null,null,null,null,null,null,null,null,{"$f":"L28","v":3},null,null,"年",null,null,{"$f":"R28","v":3},null,null,null,"月分",null,null,null,null,null,null,null,null,null,null,null,"令和",null,null,null,null,null,null,null,null,null,{"$f":"L28","v":3},null,null,"年",null,null,{"$f":"R28","v":3},null,null,null,"月分"]
[]
[]
[null,null,null,null,null,null,null,null,null,null,null,null,null,null,null,"千",null,"百",null,"十",null,"万",null,"千",null,"百",null,"十",null,"円",null,null,null,null,null,null,null,null,null,null,null,null,null,null,null,null,null,"千",null,"百",null,"十",null,"万",null,"千",null,"百",null,"十",null,"円",null,null,null,null,null,null,null,null,null,null,null,null,null,null,null,null,null,"千",null,"百",null,"十",null,"万",null,"千",null,"百",null,"十",null,"円"]
[null,"納入税額",null,null,null,null,null,null,null,null,null,null,null,null,null,{"$f":"入力用!AK20","v":""},null,{"$f":"入力用!AM20","v":""},null,{"$f":"入力用!AO20","v":""},null,{"$f":"入力用!AQ20","v":""},null,{"$f":"入力用!AS20","v":""},null,{"$f":"入力用!AU20","v":""},null,{"$f":"入力用!AW20","v":""},null,{"$f":"入力用!AY20","v":""},null,null,null,"納入税額",null,null,null,null,null,null,null,null,null,null,null,null,null,{"$f":"P32","v":""},null,{"$f":"R32","v":""},null,{"$f":"T32","v":""},null,{"$f":"V32","v":""},null,{"$f":"X32","v":""},null,{"$f":"Z32","v":""},null,{"$f":"AB32","v":""},null,{"$f":"AD32","v":""},null,null,null,"納入税額",null,null,null,null,null,null,null,null,null,null,null,null,null,{"$f":"P32","v":""},null,{"$f":"R32","v":""},null,{"$f":"T32","v":""},null,{"$f":"V32","v":""},null,{"$f":"X32","v":""},null,{"$f":"Z32","v":""},null,{"$f":"AB32","v":""},null,{"$f":"AD32","v":""}]
[]
[]
[null,"延滞金額",null,null,null,null,null,null,null,null,null,null,null,null,null,{"$f":"入力用!AK23","v":""},null,{"$f":"入力用!AM23","v":""},null,{"$f":"入力用!AO23","v":""},null,{"$f":"入力用!AQ23","v":""},null,{"$f":"入力用!AS23","v":""},null,{"$f":"入力用!AU23","v":""},null,{"$f":"入力用!AW23","v":""},null,{"$f":"入力用!AY23","v":"0"},null,null,null,"延滞金額",null,null,null,null,null,null,null,null,null,null,null,null,null,{"$f":"P35","v":""},null,{"$f":"R35","v":""},null,{"$f":"T35","v":""},null,{"$f":"V35","v":""},null,{"$f":"X35","v":""},null,{"$f":"Z35","v":""},null,{"$f":"AB35","v":""},null,{"$f":"AD35","v":"0"},null,null,null,"延滞金額",null,null,null,null,null,null,null,null,null,null,null,null,null,{"$f":"P35","v":""},null,{"$f":"R35","v":""},null,{"$f":"T35","v":""},null,{"$f":"V35","v":""},null,{"$f":"X35","v":""},null,{"$f":"Z35","v":""},null,{"$f":"AB35","v":""},null,{"$f":"AD35","v":"0"}]
[]
[]
[null,"督促手数料",null,null,null,null,null,null,null,null,null,null,null,null,null,{"$f":"入力用!AK26","v":""},null,{"$f":"入力用!AM26","v":""},null,{"$f":"入力用!AO26","v":""},null,{"$f":"入力用!AQ26","v":""},null,{"$f":"入力用!AS26","v":""},null,{"$f":"入力用!AU26","v":""},null,{"$f":"入力用!AW26","v":""},null,{"$f":"入力用!AY26","v":"0"},null,null,null,"督促手数料",null,null,null,null,null,null,null,null,null,null,null,null,null,{"$f":"P38","v":""},null,{"$f":"R38","v":""},null,{"$f":"T38","v":""},null,{"$f":"V38","v":""},null,{"$f":"X38","v":""},null,{"$f":"Z38","v":""},null,{"$f":"AB38","v":""},null,{"$f":"AD38","v":"0"},null,null,null,"督促手数料",null,null,null,null,null,null,null,null,null,null,null,null,null,{"$f":"P38","v":""},null,{"$f":"R38","v":""},null,{"$f":"T38","v":""},null,{"$f":"V38","v":""},null,{"$f":"X38","v":""},null,{"$f":"Z38","v":""},null,{"$f":"AB38","v":""},null,{"$f":"AD38","v":"0"}]
[]
[]
[null,"過少・不申告\n加算金額",null,null,null,null,null,null,null,null,null,null,null,null,null,{"$f":"入力用!AK29","v":""},null,{"$f":"入力用!AM29","v":""},null,{"$f":"入力用!AO29","v":""},null,{"$f":"入力用!AQ29","v":""},null,{"$f":"入力用!AS29","v":""},null,{"$f":"入力用!AU29","v":""},null,{"$f":"入力用!AW29","v":""},null,{"$f":"入力用!AY29","v":"0"},null,null,null,"過少・不申告\n加算金額",null,null,null,null,null,null,null,null,null,null,null,null,null,{"$f":"P41","v":""},null,{"$f":"R41","v":""},null,{"$f":"T41","v":""},null,{"$f":"V41","v":""},null,{"$f":"X41","v":""},null,{"$f":"Z41","v":""},null,{"$f":"AB41","v":""},null,{"$f":"AD41","v":"0"},null,null,null,"過少・不申告\n加算金額",null,null,null,null,null,null,null,null,null,null,null,null,null,{"$f":"P41","v":""},null,{"$f":"R41","v":""},null,{"$f":"T41","v":""},null,{"$f":"V41","v":""},null,{"$f":"X41","v":""},null,{"$f":"Z41","v":""},null,{"$f":"AB41","v":""},null,{"$f":"AD41","v":"0"}]
[]
[]
[null,"合  計  額",null,null,null,null,null,null,null,null,null,null,null,null,null,{"$f":"入力用!AK32","v":""},null,{"$f":"入力用!AM32","v":""},null,{"$f":"入力用!AO32","v":""},null,{"$f":"入力用!AQ32","v":""},null,{"$f":"入力用!AS32","v":""},null,{"$f":"入力用!AU32","v":""},null,{"$f":"入力用!AW32","v":""},null,{"$f":"入力用!AY32","v":"0"},null,null,null,"合  計  額",null,null,null,null,null,null,null,null,null,null,null,null,null,{"$f":"P44","v":""},null,{"$f":"R44","v":""},null,{"$f":"T44","v":""},null,{"$f":"V44","v":""},null,{"$f":"X44","v":""},null,{"$f":"Z44","v":""},null,{"$f":"AB44","v":""},null,{"$f":"AD44","v":"0"},null,null,null,"合  計  額",null,null,null,null,null,null,null,null,null,null,null,null,null,{"$f":"P44","v":""},null,{"$f":"R44","v":""},null,{"$f":"T44","v":""},null,{"$f":"V44","v":""},null,{"$f":"X44","v":""},null,{"$f":"Z44","v":""},null,{"$f":"AB44","v":""},null,{"$f":"AD44","v":"0"}]
[]
[]
[]
[null,"納期限",null,null,null,null,null,null,"年",null,null,null,"月",null,null,null,"日","領収日付印",null,null,null,null,null,null,null,null,null,null,null,null,null,null,null,"納期限",null,null,null,null,null,null,"年",null,null,null,"月",null,null,null,"日","領収日付印",null,null,null,null,null,null,null,null,null,null,null,null,null,null,null,"納期限",null,null,null,null,null,null,"年",null,null,null,"月",null,null,null,"日","領収日付印"]
[]
[null,"上記のとおり領収しました。\n（納税者保管）",null,null,null,null,null,null,null,null,null,null,null,null,null,null,null,null,null,null,null,null,null,null,null,null,null,null,null,null,null,null,null,"日　計",null,null,null,null,null,null,null,null,null,null,null,null,null,"口",null,null,null,null,null,null,null,null,null,null,null,null,null,null,null,null,null,"指定金融機関名\n(取りまとめ店)",null,null,null,null,null,null,"秋田銀行\n田沢湖支店"]
[]
[null,null,null,null,null,null,null,null,null,null,null,null,null,null,null,null,null,null,null,null,null,null,null,null,null,null,null,null,null,null,null,null,null,null,null,null,null,null,null,null,null,null,null,null,null,null,null,"円"]
[null,"仙北市会計管理者",null,null,null,null,null,null,null,null,null,null,null,null,null,null,null,null,null,null,null,null,null,null,null,null,null,null,null,null,null,null,null,null,null,null,null,null,null,null,null,null,null,null,null,null,null,null,null,null,null,null,null,null,null,null,null,null,null,null,null,null,null,null,null,"上記のとおり収納したので通知します。\n　　　（市役所保管）\n仙北市会計管理者　様"]
[null,null,null,null,null,null,null,null,null,null,null,null,null,null,null,null,null,null,null,null,null,null,null,null,null,null,null,null,null,null,null,null,null,"上記のとおり納付します。\n（金融機関保管）"]
[]
[null,"◎","この納付書は、3枚1組と"]
[null,null,"なっています。"]